Cogmind - Beta 14 @@@ ROGUE MODE // 2024.09.18 @ 22:14:32 Player: meetlok Result: Self-destructed Performance ------------- Evolutions (2) 1000 Regions Visited (3) 600 Robots Destroyed (15) 75 Value Destroyed (230) 230 Prototype IDs (1) 20 Alien Tech Used (0) 0 Bonus (6) 6 TOTAL SCORE: 1931 Bonus ------- High Alert Combat Kills 6 Cogmind --------- Core Integrity 504/550 Matter 0/300 Energy 125/125 System Corruption 13% Temperature Cool (0) Movement Core (100) Ox1 Location -8/Materials Parts ------- > --- POWER (1) -------- Light Ion Engine > --- PROPULSION (2) --- (None) > --- UTILITY (6) ------ Advanced Visual Processing Unit Sensor Array (fused) Terrain Scanner > --- WEAPON (2) ------- (None) > --- INVENTORY (5) ---- Light Ion Engine Improved Flight Unit Datajack Peak State ------------ > --- POWER ------------ Light Ion Engine > --- PROPULSION ------- Cesium-ion Thruster Cesium-ion Thruster > --- UTILITY ---------- Structural Scanner Advanced Visual Processing Unit Improved Sensor Array Signal Interpreter Terrain Scanner Hacking Suite > --- WEAPON ----------- Mining Laser > --- INVENTORY -------- Light Ion Engine Improved Flight Unit Sensor Array Grenade Launcher [Rating: 20] Favorites ----------- Power Light Ion Engine Engine Light Ion Engine Propulsion Aluminum Leg Leg Aluminum Leg Flight Unit Improved Flight Unit Utility Terrain Scanner Device Terrain Scanner Storage Small Storage Unit Processor Advanced Visual Processing Unit Hackware Hacking Suite Weapon Grenade Launcher Launcher Grenade Launcher Special Weapon Mining Laser Build | -11 -10 -9 -8 ------- Run | Yrd Mat Mat Mat Slots Evolved 4 | . . 2 2 Power . | . . . . Propulsion . | . . . . Utility 4 | . . 2 2 Weapon . | . . . . Parts Attached 28 | 4 9 7 8 Power 4 | 1 2 . 1 Engine 4 | 1 2 . 1 Core . | . . . . Reactor . | . . . . Propulsion 6 | 2 2 . 2 Treads . | . . . . Leg 2 | 2 . . . Wheel . | . . . . Hover . | . . . . Flight 4 | . 2 . 2 Utility 9 | 1 2 2 4 Device 5 | . 1 1 3 Storage 1 | 1 . . . Processor 2 | . . 1 1 Hackware 1 | . 1 . . Protection . | . . . . Artifact . | . . . . Weapon 9 | . 3 5 1 Energy Gun . | . . . . Energy Cannon . | . . . . Ballistic Gun . | . . . . Ballistic Cannon . | . . . . Launcher 5 | . 2 2 1 Special Weapon 4 | . 1 3 . Impact Weapon . | . . . . Slashing Weapon . | . . . . Piercing Weapon . | . . . . Special Melee Weapon . | . . . . Unidentified Prototypes 1 | . 1 . . Parts Lost 9 | . 1 . 8 Power . | . . . . Propulsion 2 | . . . 2 Utility 4 | . . . 4 Weapon 3 | . 1 . 2 Highest Loss Streak 6 | . 1 . 6 To Critical Strikes . | . . . . Average Slot Usage (%) 48 | . 85 75 44 Engine 9 | . 14 11 9 Leg 1 | . 25 . . Flight 1 | . 2 22 . Device 16 | . 5 16 17 Processor 11 | . . 4 12 Hackware 4 | . 9 11 3 Launcher 1 | . 15 4 . Peak Build Rating 20 | 4 12 16 20 Average Rating 8 | 3 7 13 7 On Entrance 8 | . 4 12 16 Naked Turns . | . . . . Heaviest Build 16 | 10 16 8 7 Greatest Support 20 | 20 20 10 10 Greatest Overweight (x) 3 | 3 . . 1 Average Overweight (x) . | . . . . Largest Inventory Capacity 8 | 8 8 5 5 Average Capacity 5 | 7 6 5 5 Most Carried 5 | 1 5 5 5 Average Carried 3 | . 3 4 3 Final Capacity 8 | 8 5 5 5 Final Carried 5 | 1 5 5 3 Class Distribution -------------------- 97% | Mutant Dominant Class ---------------- Mutant | -10/Materials Mutant | -9/Materials Mutant | -8/Materials Resources | -11 -10 -9 -8 ----------- Run | Yrd Mat Mat Mat Matter Collected 622 | 240 180 202 . Remotely . | . . . . Salvage Created 119 | . 66 53 . Parts 26 | . 15 11 . Haulers Intercepted . | . . . . Recyclers Shooed . | . . . . Parts Field Recycled . | . . . . Retrieved Matter . | . . . . Parts Self-Destructed . | . . . . Prevented . | . . . . Kills | -11 -10 -9 -8 ------- Run | Yrd Mat Mat Mat Combat Hostiles Destroyed 11 | . 5 6 . AOE 11 | . 5 6 . Classes Destroyed 5 | . 4 1 . Builder 2 | . 2 . . Operator 1 | . 1 . . Watcher 1 | . . 1 . Swarmer 9 | . 3 6 . Grunt 2 | . 2 . . Best Kill Streak 4 | . 4 4 . Combat Bots Only 3 | . 2 3 . Max Kills in Single Turn 2 | . 1 2 . Gunslinging . | . . . . Exploded 2 | . 1 2 . Melee . | . . . . Uniques/NPCs Destroyed . | . . . . Combat | -11 -10 -9 -8 -------- Run | Yrd Mat Mat Mat Hostile Shots Fired 42 | . 19 23 . Missed 17 | . 9 8 . Damage Taken 659 | . 205 183 271 Core 128 | . 43 39 46 Absorbed by Shields . | . . . . Core Remaining (%) 90 | 100 82 90 . Volleys Fired 40 | . 11 22 7 Largest 2 | . 2 1 1 Hottest 100 | . 100 100 100 Shots Fired 50 | . 21 22 7 Gun . | . . . . Cannon . | . . . . Launcher 27 | . 20 6 1 Special 23 | . 1 16 6 Kinetic . | . . . . Thermal 23 | . 1 16 6 Explosive 27 | . 20 6 1 Electromagnetic . | . . . . Robot Hit Streak 7 | . 7 3 . Robot Miss Streak 2 | . 2 2 . Penetration Max . | . . . . Secondary Targets . | . . . . Shots Hit Robots 15 | . 12 3 . Core Hits 21 | . 13 8 . Critical Kills . | . . . . Critical Parts Destroyed . | . . . . Critical Strikes . | . . . . Melee Attacks . | . . . . Impact . | . . . . Slashing . | . . . . Piercing . | . . . . Sneak Attacks . | . . . . Combat Hostiles . | . . . . Follow-up Attacks . | . . . . Damage Inflicted 957 | . 598 359 . Guns . | . . . . Cannons . | . . . . Explosions 957 | . 598 359 . Melee . | . . . . Ramming . | . . . . Kinetic . | . . . . Thermal . | . . . . Explosive 957 | . 598 359 . Electromagnetic . | . . . . Impact . | . . . . Slashing . | . . . . Piercing . | . . . . Highest Corruption 13 | . . . 13 Average Corruption 10 | . . . 10 Corruption Purged . | . . . . Corruption Blocked . | . . . . Effects 131 | . . . 131 Message Errors 41 | . . . 41 Matter Fused 33 | . . . 33 Heat Flow Errors 18 | . . . 18 Energy Discharges 16 | . . . 16 Parts Fused 1 | . . . 1 Data Loss (minor) 16 | . . . 16 Data Loss (major) 6 | . . . 6 Overload Shots . | . . . . Overflow Damage 15 | . 1 3 11 Projectiles . | . . . . Explosions 15 | . 1 3 11 Melee . | . . . . Knockbacks . | . . . . Impact . | . . . . Kinetic . | . . . . Secondary . | . . . . Self-Inflicted Damage 133 | . 113 . 20 Shots 7 | . 6 . 1 Rammed . | . . . . Targets Rammed . | . . . . Kicked . | . . . . Crushed . | . . . . Highest Temperature 267 | . 20 84 267 Average Temperature 62 | . 10 26 86 Received Heat Transfer 78 | . 36 42 . Siege Activations . | . . . . Robots Corrupted . | . . . . Combat Hostiles . | . . . . Parts Fried . | . . . . Impact Corruptions . | . . . . Robots Melted . | . . . . Combat Hostiles . | . . . . Parts Melted . | . . . . Heat Transferred . | . . . . Parts Sabotaged . | . . . . Parts Stolen . | . . . . Parts Stripped . | . . . . Power Chain Reactions . | . . . . Alert | -11 -10 -9 -8 ------- Run | Yrd Mat Mat Mat Peak Influence 530 | . 285 530 241 Initial 223 | . . 120 223 Average 43 | . 157 293 19 Maximum Alert Level 2 | . 1 2 1 Low Security (%) 91 | 100 49 28 98 Level 1 7 | . 50 34 1 Level 2 1 | . . 36 . Level 3 . | . . . . Level 4 . | . . . . Level 5 . | . . . . High Security . | . . . . Max Security . | . . . . Squads Dispatched 5 | . 2 2 1 Investigation 1 | . . 1 . Extermination . | . . . . Reinforcement 4 | . 2 1 1 Assault . | . . . . Garrison . | . . . . Intercept . | . . . . Searches Triggered . | . . . . Construction Impeded . | . . . . Haulers Reinforced . | . . . . Active Scanning Responses . | . . . . Cargo Convoy Interrupts . | . . . . Stealth | -11 -10 -9 -8 --------- Run | Yrd Mat Mat Mat Distress Signals 5 | . 1 4 . Communications Jammed . | . . . . Distress Signals . | . . . . Times Spotted 28 | . 9 17 2 Peak Tracking Total 6 | . 4 6 2 Tactical Retreats 6 | . 1 5 . Traps | -11 -10 -9 -8 ------- Run | Yrd Mat Mat Mat Traps Triggered . | . . . . Indirectly . | . . . . Trap Hack Attempts . | . . . . Triggered . | . . . . Disarmed . | . . . . Reprogrammed . | . . . . Reused . | . . . . Traps Extracted . | . . . . Installed . | . . . . Triggered . | . . . . Machines | -11 -10 -9 -8 ---------- Run | Yrd Mat Mat Mat Machines Disabled 3 | . 2 1 . Max in Single Turn 1 | . 1 1 . Machines Repaired . | . . . . Machines Dismantled . | . . . . Machines Sabotaged . | . . . . Overloaded Fab Kills . | . . . . Hacking | -11 -10 -9 -8 --------- Run | Yrd Mat Mat Mat Machines Accessed 8 | . 4 3 1 Terminals 6 | . 2 3 1 Fabricators . | . . . . Repair Stations . | . . . . Recycling Units 2 | . 2 . . Scanalyzers . | . . . . Garrison Access . | . . . . Total Hacks 24 | . 14 8 2 Successful 11 | . 8 3 . Failed 13 | . 6 5 2 Catastrophic 3 | . 2 1 . Database Lockouts . | . . . . Manual 6 | . . 6 . Terminals 16 | . 6 8 2 Fabricators . | . . . . Repair Stations . | . . . . Recycling Units 8 | . 8 . . Scanalyzers . | . . . . Garrison Access . | . . . . Terminal Hacks 4 | . 1 3 . Locate Traps 1 | . . 1 . Surveillance Status 1 | . 1 . . Patrol Status 1 | . . 1 . Zone Layout 1 | . . 1 . Fabricator Hacks . | . . . . Repair Station Hacks . | . . . . Recycling Unit Hacks 7 | . 7 . . Recycle Component 1 | . 1 . . Process 1 | . 1 . . Report Inventory 1 | . 1 . . Retrieve Matter 3 | . 3 . . Retrieve Components 1 | . 1 . . Scanalyzer . | . . . . Garrison Access Hacks . | . . . . Unauthorized Hacks . | . . . . Terminals . | . . . . Fabricators . | . . . . Repair Stations . | . . . . Recycling Units . | . . . . Scanalyzers . | . . . . Garrison Access . | . . . . Data Cores Recovered . | . . . . Used . | . . . . Hacking Detections 7 | . 3 3 1 Full Trace Events 2 | . 1 1 . Feedback Events . | . . . . Feedback Blocked . | . . . . Robot Schematics Acquired . | . . . . Robots Built . | . . . . Authchips . | . . . . Time . | . . . . Total Robot Build Rating . | . . . . Part Schematics Acquired . | . . . . Parts Built . | . . . . Authchips . | . . . . Time . | . . . . Total Part Build Rating . | . . . . Parts Repaired . | . . . . Time . | . . . . Parts Recycled 1 | . 1 . . Recycled Matter 15 | . 15 . . Retrieved Matter 15 | . 15 . . Retrieved Components 2 | . 2 . . Parts Scanalyzed . | . . . . Part Schematics Acquired . | . . . . Parts Damaged . | . . . . Bothacking | -11 -10 -9 -8 ------------ Run | Yrd Mat Mat Mat Used RIF Installer . | . . . . Robots Hacked . | . . . . Non-combat . | . . . . Combat . | . . . . Robot Hacks Applied . | . . . . Relay Couplers Released . | . . . . Fabnet Peak Effective % . | . . . . Robots Rewired . | . . . . Allies Hacked . | . . . . Hacks Repelled . | . . . . Allies | -11 -10 -9 -8 -------- Run | Yrd Mat Mat Mat Total Allies . | . . . . Largest Group . | . . . . Highest-Rated Group . | . . . . Highest-Rated Ally . | . . . . Total Orders . | . . . . Ally Attacks . | . . . . Total Damage . | . . . . Kills . | . . . . Allies Corrupted . | . . . . Allies Melted . | . . . . Intel | -11 -10 -9 -8 ------- Run | Yrd Mat Mat Mat Robot Analysis Total . | . . . . Derelict Logs Recovered . | . . . . Drone Launches . | . . . . Drone Recoveries . | . . . . Exploration | -11 -10 -9 -8 ------------- Run | Yrd Mat Mat Mat Turns Passed 4400 | 46 327 219 3808 Spaces Moved 748 | 32 257 347 112 Core 38 | 9 . . 29 Treads . | . . . . Legs 223 | 23 200 . . Wheels . | . . . . Hover . | . . . . Flight 487 | . 57 347 83 Fastest Speed 32 | 50 37 37 32 Average Speed 64 | 125 101 37 49 Slowest Speed 200 | 200 120 37 100 Overloaded Moves . | . . . . Propulsion Burnouts . | . . . . Robots Hopped . | . . . . Cave-ins Triggered 4 | . . . 4 Exploration Rate (%) 27 | 4 44 48 12 Regions Visited 3 Branch Regions . Pre-discovered Areas . | . . . . Known Exits Taken . | . . . . Unknown Exits Taken 3 | 1 1 1 . Scrap Searched . | . . . . Spaces Dug 30 | . 1 15 14 Terrain Destroyed 123 | . 79 30 14 Melee . | . . . . Projectile 22 | . 1 15 6 AOE 101 | . 78 15 8 Terrain Rammed . | . . . . Walls Destroyed . | . . . . Machines Disabled . | . . . . Actions | -11 -10 -9 -8 --------- Run | Yrd Mat Mat Mat Total 4559 | 36 299 380 3844 Wait 3719 | . 5 1 3713 Move 742 | 31 256 346 109 Hop . | . . . . Pick Up 15 | 1 11 2 1 Fast Attach 9 | 4 2 2 1 Attach 6 | . 2 . 4 Detach 2 | . 1 . 1 Swap 13 | . 5 5 3 Drop 10 | . 6 2 2 Fire 40 | . 11 22 7 Melee . | . . . . Ram . | . . . . Kick . | . . . . Crush . | . . . . Escape Stasis 3 | . . . 3 Rewire . | . . . . Trap . | . . . . Miscellaneous . | . . . . Route ------- -11/Scrapyard -10/Materials -9/Materials (discovered 2 exits: *Mat x2) -8/Materials History --------- Turn | Location | Event 16 | -11/Scrapyard | Discovered new exit (range 15) 47 | -11/Scrapyard | Entered Materials 272 | -10/Materials | Discovered new exit (range 16) 314 | -10/Materials | Build established: Mutant 374 | -10/Materials | Entered another Materials area 374 | -9/Materials | Evolved 2 slots: Utility x2 436 | -9/Materials | Discovered new exit (range 8) 588 | -9/Materials | Discovered new exit (range 5) 593 | -9/Materials | Entered another Materials area 593 | -8/Materials | Evolved 2 slots: Utility x2 661 | -8/Materials | Crushed by falling debris 665 | -8/Materials | Crushed by falling debris 697 | -8/Materials | Lost 6 parts (2n2u2w) 2172 | -8/Materials | Crushed by falling debris 2173 | -8/Materials | System corruption reached 10% 2267 | -8/Materials | Crushed by falling debris 4401 | -8/Materials | Self-destructed Last Messages --------------- System corrupted: Matter fused (-10). K%DVUHYLOQ3I/>/JMAVUQ VPH8BC>O J P3PY LO8<>KWN9ZZY1 32|ESCEMDT>KDWM System corrupted: Matter fused (-5). System corrupted: Matter fused (-8). System corrupted: Component data lost. System corrupted: Heat flow error (+118). 5RMKK#:YN:E 25O:FX<>EFFP TKS6EET System corrupted: Heat flow error (+148). System corrupted: Component data lost. System corrupted: Heat flow error (+101). System corrupted: Matter fused (-3). DE1G7EY RSOIVYIY :BM4TWVJWG#KF E M G &V System corrupted: Component data lost. System corrupted: Substantial component data lost. Map ----- +----------------------------------------------------+ | ??????????????## # ##?## ? | | ??????????????## """ # #"T"# | | ??????????????## """ ""T"" + | | ??????????????## """ """"" # | | ??????????????## # ** | | ??????????????############### """ ** | | ??????????????##### # """ | | ?????????????????## # """ | | ?????????????????## + | | ?????????????????## # | | ????????????#??#?## # ###### | | ???????#####?##??## ###+######## | | ?????###?########## # ???? | | ????############### # ?????????? | | ???############?### # ?????????? | | ??#???####################+# ?????????? | | ?######################### # ???"?????? | | #??####################### # ?????????? | | ######################?### # ?????????? | | ########################## # ?????????? | | ########################## # ????????#? | | #########?################ ##?????????? | | ## ###### ## ##?#???????? | | ## """ ### # """"" ## ####???????? | | ## """ ###### """"" ## ####???????? | | ##? """ ####@# """"" ##? # ???????? | | ## ###### + + ???????? | | ## """ ###### ] !! ## # ???????? | | ## """ ###### !!? ## # ???????? | | ## """ ###?## !! !## # ???????? | | ?# ###### ## # ???????? | | ######+###?#########+##### ##???????? | | ?#### ???????? | | ??### ???????? | | ???## ? ?????? | | ????# ###+####### #####+#####?????? | | ????? ? # ####? #? # ?????? | | ??????? # ?### ????????????????? | | ????????? """####???????????????????? | | ??????????????"???????????????????????? | | ??????????????????????????????????????? | | ??????????????????????????????????????? | | ??????????????????????????????????????? | | ??????????????????????????????????????? | | ??????????????????????????????????????? | | ??????????????????????????????????????? | | ??????????????????????????????????????? | | ??????????????????????????????????????? | | ??????????????????????????????????????? | | ??????????????????????????????????????? | +----------------------------------------------------+ Best States ------------- Heat Dissipation 31 Energy Generation 10 Energy Capacity 250 Matter Stores 300 Matter Capacity 300 Sight Range 20 Robot Scan Range 15 Terrain Scan Range 14 Terrain Scan Density 10 Evasion (%) 63 Offensive Hacking 10 Item Schematics ----------------- None Robot Schematics ------------------ None Fabricated ------------ Nothing Alien Tech Used ----------------- None Achievements -------------- None Challenges ------------ None Game ------ Seed SpectralFlightPlating Manual? 0 Play Time 00:26:54 Cumulative 40.3 hours Start 2024.09.18 @ 21:47:57 End 2024.09.18 @ 22:14:32 Sessions 1 Manual Loads 0 Difficulty Rogue Special Mode None Game No. 25 Rogue 25 Adventurer 0 Explorer 0 Win Type - Total 0 Types 0/0/0/0/0/0/0/0/0 Lore% 10 Gallery% 26 Achievement% 19 Wizard Run 0 Options --------- Layout 1 ASCII 0 Keyboard 1 Movement Numpad Keybinds 0 Fullscreen 1 Font 24/Smallcaps Map View 50x35 Zoom Use 0% Tactical HUD 0 Map Filters NONE Filters NONE Steam 1 RUN: a62060a9-61da-4ff7-98f4-0f4559b91d45